[Event "*** SCC Grand Prix: Titled Tuesday Blitz"]
[Site "Chess.com"]
[Date "2020.07.21"]
[Round "5"]
[White "Antipov_Mikhail_Al"]
[Black "Hikaru"]
[Result "0-1"]
[WhiteElo "2851"]
[BlackElo "3265"]
[TimeControl "180+1"]
[EndTime "10:56:16 PDT"]
[Termination "Hikaru won on time"]

1. e4 {[%clk 0:02:58.1]} 1... e5 {[%clk 0:02:54]} 2. Nf3 {[%clk 0:02:57.9]} 2...
Nc6 {[%clk 0:02:53.1]} 3. Bc4 {[%clk 0:02:57.9]} 3... Bc5 {[%clk 0:02:52.5]} 4.
O-O {[%clk 0:02:56.5]} 4... Nf6 {[%clk 0:02:51.5]} 5. d3 {[%clk 0:02:56.6]} 5...
d6 {[%clk 0:02:51.5]} 6. c3 {[%clk 0:02:56.5]} 6... h6 {[%clk 0:02:51.6]} 7. Re1
{[%clk 0:02:54.4]} 7... O-O {[%clk 0:02:47.7]} 8. h3 {[%clk 0:02:52.3]} 8... a5
{[%clk 0:02:47.5]} 9. Nbd2 {[%clk 0:02:50.1]} 9... Be6 {[%clk 0:02:45.4]} 10.
Bb5 {[%clk 0:02:50.1]} 10... Ne7 {[%clk 0:02:43]} 11. d4 {[%clk 0:02:45.8]}
11... exd4 {[%clk 0:02:43.1]} 12. cxd4 {[%clk 0:02:44.5]} 12... Ba7 {[%clk
0:02:43.2]} 13. Bd3 {[%clk 0:02:38.2]} 13... Nc6 {[%clk 0:02:20.7]} 14. d5
{[%clk 0:02:25]} 14... Nb4 {[%clk 0:02:20.7]} 15. Bf1 {[%clk 0:02:24.5]} 15...
Bd7 {[%clk 0:02:20.6]} 16. a3 {[%clk 0:02:03.5]} 16... Na6 {[%clk 0:02:12.2]}
17. Bxa6 {[%clk 0:02:00]} 17... bxa6 {[%clk 0:02:13.1]} 18. Nf1 {[%clk
0:02:00.7]} 18... Re8 {[%clk 0:02:09.4]} 19. Ng3 {[%clk 0:02:00.6]} 19... c6
{[%clk 0:02:01.7]} 20. dxc6 {[%clk 0:01:00.2]} 20... Bxc6 {[%clk 0:02:02.6]} 21.
Qd3 {[%clk 0:01:00.3]} 21... Bb5 {[%clk 0:01:50.2]} 22. Qb1 {[%clk 0:00:52.6]}
22... Rc8 {[%clk 0:01:41]} 23. Be3 {[%clk 0:00:51.1]} 23... Bxe3 {[%clk
0:01:37.4]} 24. Rxe3 {[%clk 0:00:52]} 24... a4 {[%clk 0:01:37.4]} 25. Qd1 {[%clk
0:00:47.7]} 25... Qb6 {[%clk 0:01:25.1]} 26. Nd4 {[%clk 0:00:42.8]} 26... Rcd8
{[%clk 0:01:18.4]} 27. Ndf5 {[%clk 0:00:42]} 27... d5 {[%clk 0:01:11.4]} 28.
exd5 {[%clk 0:00:32.5]} 28... Nxd5 {[%clk 0:00:58.3]} 29. Rxe8+ {[%clk
0:00:31.1]} 29... Bxe8 {[%clk 0:00:59.2]} 30. Qg4 {[%clk 0:00:28.7]} 30... Qg6
{[%clk 0:00:28.9]} 31. Rd1 {[%clk 0:00:27.5]} 31... Qxg4 {[%clk 0:00:29.2]} 32.
hxg4 {[%clk 0:00:28.4]} 32... Kf8 {[%clk 0:00:29.3]} 33. Ne3 {[%clk 0:00:27.9]}
33... Bc6 {[%clk 0:00:29.5]} 34. Ne4 {[%clk 0:00:18.9]} 34... Ke8 {[%clk
0:00:24]} 35. Nc5 {[%clk 0:00:13.3]} 35... Nxe3 {[%clk 0:00:20.4]} 36. Re1
{[%clk 0:00:13.6]} 36... Kf8 {[%clk 0:00:20]} 37. Rxe3 {[%clk 0:00:12.8]} 37...
Rd1+ {[%clk 0:00:20.5]} 38. Kh2 {[%clk 0:00:12.8]} 38... Rd2 {[%clk 0:00:21.2]}
39. f3 {[%clk 0:00:13.2]} 39... Rxb2 {[%clk 0:00:21.2]} 40. Rc3 {[%clk
0:00:09.1]} 40... Bb5 {[%clk 0:00:21.3]} 41. Kg3 {[%clk 0:00:07.2]} 41... Bf1
{[%clk 0:00:21.6]} 42. Kf4 {[%clk 0:00:04.4]} 42... Bxg2 {[%clk 0:00:20.6]} 43.
Nxa4 {[%clk 0:00:03.2]} 43... g5+ {[%clk 0:00:19.4]} 44. Kg3 {[%clk 0:00:02.7]}
44... Rd2 {[%clk 0:00:18.2]} 45. Nc5 {[%clk 0:00:01.7]} 45... Bf1 {[%clk
0:00:17.9]} 46. Ne4 {[%clk 0:00:02]} 46... Rg2+ {[%clk 0:00:17.9]} 47. Kh3
{[%clk 0:00:02.6]} 47... Kg7 {[%clk 0:00:17.2]} 48. a4 {[%clk 0:00:01.9]} 48...
Ra2+ {[%clk 0:00:16.6]} 49. Kg3 {[%clk 0:00:02]} 49... Rxa4 {[%clk 0:00:14.1]}
50. Nd6 {[%clk 0:00:02.4]} 50... Bb5 {[%clk 0:00:12.9]} 51. Nf5+ {[%clk
0:00:02.5]} 51... Kg6 {[%clk 0:00:12.1]} 52. Rc8 {[%clk 0:00:02.3]} 52... Bd7
{[%clk 0:00:09.7]} 53. Rg8+ {[%clk 0:00:02.4]} 53... Kf6 {[%clk 0:00:10.3]} 54.
Nxh6 {[%clk 0:00:02]} 54... Ra3 {[%clk 0:00:11]} 55. Rd8 {[%clk 0:00:01.3]}
55... Be6 {[%clk 0:00:10.9]} 56. Ra8 {[%clk 0:00:01.6]} 56... Bd5 {[%clk
0:00:10]} 0-1

[Event "*** SCC Grand Prix: Titled Tuesday Blitz"]
[Site "Chess.com"]
[Date "2020.07.21"]
[Round "5"]
[White "novocane"]
[Black "13MiRacLe"]
[Result "0-1"]
[WhiteElo "2262"]
[BlackElo "2633"]
[TimeControl "180+1"]
[EndTime "10:56:16 PDT"]
[Termination "13MiRacLe won on time"]

1. d4 {[%clk 0:03:00.8]} 1... Nf6 {[%clk 0:02:56.4]} 2. c4 {[%clk 0:03:00.8]}
2... g6 {[%clk 0:02:56.2]} 3. Nc3 {[%clk 0:03:00.9]} 3... d5 {[%clk 0:02:56.8]}
4. cxd5 {[%clk 0:03:01.8]} 4... Nxd5 {[%clk 0:02:57.4]} 5. e4 {[%clk 0:03:02.6]}
5... Nxc3 {[%clk 0:02:57.8]} 6. bxc3 {[%clk 0:03:03.5]} 6... Bg7 {[%clk
0:02:58.3]} 7. Qa4+ {[%clk 0:03:03.4]} 7... Qd7 {[%clk 0:02:56.4]} 8. Qa3 {[%clk
0:03:03.2]} 8... b6 {[%clk 0:02:45.7]} 9. Nf3 {[%clk 0:02:53.9]} 9... c5 {[%clk
0:02:45.2]} 10. Be3 {[%clk 0:02:49.2]} 10... Bb7 {[%clk 0:02:43.2]} 11. Bd3
{[%clk 0:02:41.1]} 11... O-O {[%clk 0:02:36.4]} 12. O-O {[%clk 0:02:14.7]} 12...
cxd4 {[%clk 0:02:25]} 13. cxd4 {[%clk 0:02:14.2]} 13... Nc6 {[%clk 0:02:25.7]}
14. Bb5 {[%clk 0:02:12.2]} 14... a6 {[%clk 0:02:25.7]} 15. Bxc6 {[%clk
0:02:11.2]} 15... Qxc6 {[%clk 0:02:21.8]} 16. d5 {[%clk 0:02:06.4]} 16... Qc4
{[%clk 0:02:21.5]} 17. Nd2 {[%clk 0:01:52]} 17... Qc7 {[%clk 0:02:01.5]} 18.
Rfc1 {[%clk 0:01:33.3]} 18... Qd8 {[%clk 0:01:59.3]} 19. Rab1 {[%clk 0:01:26.6]}
19... b5 {[%clk 0:01:59.5]} 20. Nb3 {[%clk 0:01:13.4]} 20... f5 {[%clk
0:01:42.3]} 21. Nc5 {[%clk 0:01:09.2]} 21... Bc8 {[%clk 0:01:42.3]} 22. f3
{[%clk 0:00:55.4]} 22... fxe4 {[%clk 0:01:42.4]} 23. fxe4 {[%clk 0:00:54]} 23...
Qd6 {[%clk 0:01:40]} 24. Qd3 {[%clk 0:00:49.9]} 24... Be5 {[%clk 0:01:28.6]} 25.
h3 {[%clk 0:00:49.9]} 25... Bd7 {[%clk 0:01:13.8]} 26. Nxd7 {[%clk 0:00:39.1]}
26... Qxd7 {[%clk 0:01:14.7]} 27. Rc6 {[%clk 0:00:33.7]} 27... Rf6 {[%clk
0:01:02.5]} 28. Rbc1 {[%clk 0:00:27.7]} 28... Raf8 {[%clk 0:00:58.9]} 29. Bd4
{[%clk 0:00:22.5]} 29... Bxd4+ {[%clk 0:00:33]} 30. Qxd4 {[%clk 0:00:21.2]}
30... Qd8 {[%clk 0:00:20]} 31. Rxf6 {[%clk 0:00:19.3]} 31... Rxf6 {[%clk
0:00:19.5]} 32. Rf1 {[%clk 0:00:19.3]} 32... Qd6 {[%clk 0:00:13.1]} 33. e5
{[%clk 0:00:14.1]} 33... Rxf1+ {[%clk 0:00:12.5]} 34. Kxf1 {[%clk 0:00:14.3]}
34... Qa3 {[%clk 0:00:13.2]} 35. d6 {[%clk 0:00:13.8]} 35... exd6 {[%clk
0:00:11.4]} 36. exd6 {[%clk 0:00:14.2]} 36... Qc1+ {[%clk 0:00:07]} 37. Ke2
{[%clk 0:00:13.6]} 37... Qc2+ {[%clk 0:00:06.5]} 38. Kf3 {[%clk 0:00:10]} 38...
Qf5+ {[%clk 0:00:04.5]} 39. Ke2 {[%clk 0:00:09.6]} 39... Qe6+ {[%clk 0:00:03.2]}
40. Kf1 {[%clk 0:00:09.7]} 40... Qf5+ {[%clk 0:00:01.9]} 41. Kg1 {[%clk
0:00:09.8]} 41... Qd7 {[%clk 0:00:02.6]} 42. Qd5+ {[%clk 0:00:09.7]} 42... Kf8
{[%clk 0:00:02.9]} 43. Qe5 {[%clk 0:00:09.8]} 43... Kf7 {[%clk 0:00:02.9]} 44.
Kh1 {[%clk 0:00:08.4]} 44... Qe6 {[%clk 0:00:02.8]} 45. Qc5 {[%clk 0:00:07.2]}
45... Qd7 {[%clk 0:00:02.9]} 46. Qc7 {[%clk 0:00:06.6]} 46... Ke6 {[%clk
0:00:02.6]} 0-1

[Event "*** SCC Grand Prix: Titled Tuesday Blitz"]
[Site "Chess.com"]
[Date "2020.07.21"]
[Round "5"]
[White "deep306"]
[Black "Eliwood44"]
[Result "1-0"]
[WhiteElo "2581"]
[BlackElo "2325"]
[TimeControl "180+1"]
[EndTime "10:56:20 PDT"]
[Termination "deep306 won by resignation"]

1. d4 {[%clk 0:03:00.9]} 1... Nf6 {[%clk 0:02:59.5]} 2. c4 {[%clk 0:03:00.6]}
2... e6 {[%clk 0:02:59.3]} 3. Nc3 {[%clk 0:03:00.4]} 3... d5 {[%clk 0:02:57.9]}
4. cxd5 {[%clk 0:02:59.1]} 4... exd5 {[%clk 0:02:58.8]} 5. Bg5 {[%clk
0:02:59.3]} 5... c6 {[%clk 0:02:58.8]} 6. e3 {[%clk 0:02:58.9]} 6... Nbd7 {[%clk
0:02:58.9]} 7. Bd3 {[%clk 0:02:58.8]} 7... Be7 {[%clk 0:02:56.4]} 8. h3 {[%clk
0:02:57.8]} 8... Nf8 {[%clk 0:02:55.6]} 9. Qc2 {[%clk 0:02:54.8]} 9... g6 {[%clk
0:02:51.7]} 10. Nge2 {[%clk 0:02:52.4]} 10... Ne6 {[%clk 0:02:51.5]} 11. Bh6
{[%clk 0:02:42.6]} 11... g5 {[%clk 0:02:32.3]} 12. Ng3 {[%clk 0:02:24.9]} 12...
Ng8 {[%clk 0:02:17.7]} 13. Nf5 {[%clk 0:02:24.5]} 13... Nxh6 {[%clk 0:02:17.4]}
14. Nxh6 {[%clk 0:02:23.7]} 14... Bd7 {[%clk 0:02:08.5]} 15. O-O-O {[%clk
0:02:02.1]} 15... Qa5 {[%clk 0:02:02.8]} 16. Kb1 {[%clk 0:02:00.6]} 16... Bf8
{[%clk 0:01:58]} 17. Ng4 {[%clk 0:01:58.6]} 17... O-O-O {[%clk 0:01:54.5]} 18.
Bxh7 {[%clk 0:01:56.9]} 18... Bb4 {[%clk 0:01:40]} 19. Bf5 {[%clk 0:01:51.2]}
19... Kb8 {[%clk 0:01:31.7]} 20. Ne5 {[%clk 0:01:49.9]} 20... Be8 {[%clk
0:01:30.5]} 21. Ne2 {[%clk 0:01:35.1]} 21... Nc7 {[%clk 0:01:26.4]} 22. g3
{[%clk 0:01:16.8]} 22... c5 {[%clk 0:01:24.9]} 23. dxc5 {[%clk 0:01:15.5]} 23...
Rh6 {[%clk 0:01:21.6]} 24. c6 {[%clk 0:01:02.3]} 24... Bxc6 {[%clk 0:01:17.7]}
25. Nd4 {[%clk 0:00:45.1]} 25... Ba4 {[%clk 0:01:17.5]} 26. b3 {[%clk
0:00:44.8]} 26... Nb5 {[%clk 0:01:12.1]} 27. Nxb5 {[%clk 0:00:43.2]} 27... Bxb5
{[%clk 0:01:13]} 28. Rc1 {[%clk 0:00:38.8]} 28... Bc6 {[%clk 0:00:51.9]} 29.
Nxf7 {[%clk 0:00:37.9]} 29... Rhh8 {[%clk 0:00:45.9]} 30. Nxh8 {[%clk
0:00:32.4]} 30... Rxh8 {[%clk 0:00:45.7]} 31. Qb2 {[%clk 0:00:30.1]} 31... d4
{[%clk 0:00:44.4]} 32. Qxd4 {[%clk 0:00:26]} 32... Qxf5+ {[%clk 0:00:43.9]} 33.
Ka1 {[%clk 0:00:26.1]} 33... Qf8 {[%clk 0:00:30.8]} 34. Rhd1 {[%clk 0:00:22.4]}
34... Be7 {[%clk 0:00:28.3]} 35. e4 {[%clk 0:00:18.5]} 35... Ba3 {[%clk
0:00:13.7]} 36. Rc4 {[%clk 0:00:12.7]} 36... a6 {[%clk 0:00:13.5]} 37. e5 {[%clk
0:00:11.8]} 37... Rg8 {[%clk 0:00:12.1]} 38. b4 {[%clk 0:00:10.1]} 38... Qf3
{[%clk 0:00:10.8]} 39. Rc3 {[%clk 0:00:07.9]} 39... Qe2 {[%clk 0:00:04.6]} 40.
Rxa3 {[%clk 0:00:06.6]} 40... Rc8 {[%clk 0:00:03.8]} 41. Rc3 {[%clk 0:00:05]}
41... Ka8 {[%clk 0:00:03.7]} 42. Rc2 {[%clk 0:00:05.3]} 42... Qf3 {[%clk
0:00:03.3]} 43. Qd2 {[%clk 0:00:05.1]} 43... Re8 {[%clk 0:00:02]} 44. Rdc1
{[%clk 0:00:05.6]} 44... Qf5 {[%clk 0:00:02.2]} 45. Rxc6 {[%clk 0:00:05.6]}
45... bxc6 {[%clk 0:00:01.6]} 46. Qd6 {[%clk 0:00:06.2]} 46... Qxe5+ {[%clk
0:00:01.6]} 47. Qxe5 {[%clk 0:00:06.9]} 47... Rxe5 {[%clk 0:00:02.4]} 48. Rxc6
{[%clk 0:00:07.5]} 48... Re1+ {[%clk 0:00:02.7]} 49. Kb2 {[%clk 0:00:08.1]}
49... Re2+ {[%clk 0:00:03.6]} 50. Kb3 {[%clk 0:00:08.8]} 50... Re4 {[%clk
0:00:04.5]} 51. Rxa6+ {[%clk 0:00:08.4]} 51... Kb7 {[%clk 0:00:04.9]} 52. Rg6
{[%clk 0:00:09.1]} 52... Re5 {[%clk 0:00:04.8]} 53. a4 {[%clk 0:00:08.8]} 53...
Rf5 {[%clk 0:00:05.2]} 54. a5 {[%clk 0:00:09]} 54... Rf3+ {[%clk 0:00:05.5]} 55.
Ka4 {[%clk 0:00:09.3]} 55... Rxf2 {[%clk 0:00:05.8]} 56. Rxg5 {[%clk 0:00:09.7]}
1-0

[Event "*** SCC Grand Prix: Titled Tuesday Blitz"]
[Site "Chess.com"]
[Date "2020.07.21"]
[Round "5"]
[White "ExtremeLearner"]
[Black "chargemax23"]
[Result "0-1"]
[WhiteElo "2260"]
[BlackElo "2605"]
[TimeControl "180+1"]
[EndTime "10:56:20 PDT"]
[Termination "chargemax23 won by resignation"]

1. d4 {[%clk 0:03:00.9]} 1... g6 {[%clk 0:02:59.6]} 2. c4 {[%clk 0:02:58.9]}
2... Bg7 {[%clk 0:03:00]} 3. Nc3 {[%clk 0:02:59.1]} 3... d6 {[%clk 0:03:00.2]}
4. e4 {[%clk 0:02:55.1]} 4... Nc6 {[%clk 0:02:59.7]} 5. Nf3 {[%clk 0:02:50.7]}
5... Bg4 {[%clk 0:02:59.1]} 6. Be3 {[%clk 0:02:46.7]} 6... e5 {[%clk 0:02:58.7]}
7. dxe5 {[%clk 0:02:37.8]} 7... Nxe5 {[%clk 0:02:50.2]} 8. Be2 {[%clk 0:02:33]}
8... Nxf3+ {[%clk 0:02:43.9]} 9. gxf3 {[%clk 0:02:30.4]} 9... Be6 {[%clk
0:02:42.6]} 10. Qb3 {[%clk 0:02:25.6]} 10... Qc8 {[%clk 0:02:33.7]} 11. h4
{[%clk 0:02:21]} 11... h5 {[%clk 0:02:32.1]} 12. O-O-O {[%clk 0:02:14.9]} 12...
Ne7 {[%clk 0:02:29.6]} 13. Rhg1 {[%clk 0:02:06.7]} 13... O-O {[%clk 0:02:08.5]}
14. Nd5 {[%clk 0:01:51.1]} 14... Nc6 {[%clk 0:02:02.6]} 15. Kb1 {[%clk
0:01:23.2]} 15... Kh7 {[%clk 0:01:59.7]} 16. f4 {[%clk 0:01:19.9]} 16... f5
{[%clk 0:01:59.2]} 17. e5 {[%clk 0:00:59.3]} 17... dxe5 {[%clk 0:01:53]} 18. Bc5
{[%clk 0:00:59.1]} 18... Rf7 {[%clk 0:01:50.5]} 19. Qg3 {[%clk 0:00:58.8]} 19...
exf4 {[%clk 0:01:33]} 20. Qxg6+ {[%clk 0:00:52.3]} 20... Kh8 {[%clk 0:01:33.3]}
21. Qxh5+ {[%clk 0:00:40.2]} 21... Kg8 {[%clk 0:01:33]} 22. Nxf4 {[%clk
0:00:36.1]} 22... b6 {[%clk 0:01:23]} 23. Qg6 {[%clk 0:00:27]} 23... Ne5 {[%clk
0:01:12.5]} 24. Qxe6 {[%clk 0:00:23.1]} 24... Qxe6 {[%clk 0:01:12.1]} 25. Nxe6
{[%clk 0:00:24]} 25... bxc5 {[%clk 0:01:12.3]} 26. Rd5 {[%clk 0:00:17.8]} 26...
Nc6 {[%clk 0:00:37.9]} 27. Nxg7 {[%clk 0:00:17.6]} 27... Rxg7 {[%clk 0:00:37.4]}
28. Rxg7+ {[%clk 0:00:18.5]} 28... Kxg7 {[%clk 0:00:37.9]} 29. Rd7+ {[%clk
0:00:19]} 29... Kf6 {[%clk 0:00:37.1]} 30. Bf3 {[%clk 0:00:19.5]} 30... Ne5
{[%clk 0:00:35.4]} 31. Bxa8 {[%clk 0:00:15.8]} 31... Nxd7 {[%clk 0:00:35.3]} 32.
f4 {[%clk 0:00:14.4]} 32... Kg6 {[%clk 0:00:33]} 33. Bc6 {[%clk 0:00:12.7]}
33... Nf6 {[%clk 0:00:32.9]} 34. Bf3 {[%clk 0:00:10.5]} 34... Ng4 {[%clk
0:00:30.3]} 35. Kc2 {[%clk 0:00:09.4]} 35... Kh5 {[%clk 0:00:26.2]} 36. Kd3
{[%clk 0:00:06.2]} 36... Kxh4 {[%clk 0:00:26]} 37. Bd5 {[%clk 0:00:06.4]} 37...
Kg3 {[%clk 0:00:24.9]} 38. a3 {[%clk 0:00:06]} 38... Kxf4 {[%clk 0:00:24]} 39.
b4 {[%clk 0:00:06.9]} 39... Ne5+ {[%clk 0:00:21.9]} 40. Kc3 {[%clk 0:00:06.9]}
40... Ke3 {[%clk 0:00:18.5]} 41. bxc5 {[%clk 0:00:06.1]} 41... f4 {[%clk
0:00:18.9]} 42. Kb4 {[%clk 0:00:06.4]} 42... Kd4 {[%clk 0:00:17.9]} 43. Kb5
{[%clk 0:00:06.2]} 43... c6+ {[%clk 0:00:13.5]} 44. Bxc6 {[%clk 0:00:04.2]}
44... Nxc6 {[%clk 0:00:13.7]} 45. Kxc6 {[%clk 0:00:04.9]} 45... f3 {[%clk
0:00:14.2]} 46. Kd6 {[%clk 0:00:05.1]} 46... f2 {[%clk 0:00:14.5]} 47. c6 {[%clk
0:00:06]} 47... f1=Q {[%clk 0:00:14.1]} 48. c7 {[%clk 0:00:06.9]} 48... Qf5
{[%clk 0:00:13.7]} 49. c5 {[%clk 0:00:05.4]} 49... Qc8 {[%clk 0:00:13.6]} 50.
Kc6 {[%clk 0:00:05.3]} 50... a5 {[%clk 0:00:13]} 51. a4 {[%clk 0:00:05.7]} 51...
Kc4 {[%clk 0:00:12.6]} 52. Kb6 {[%clk 0:00:06.2]} 52... Kb4 {[%clk 0:00:12.4]}
53. c6 {[%clk 0:00:06.9]} 53... Kxa4 {[%clk 0:00:12]} 54. Ka7 {[%clk 0:00:07.8]}
54... Qxc7+ {[%clk 0:00:11.5]} 55. Ka8 {[%clk 0:00:08.7]} 55... Qxc6+ {[%clk
0:00:11.6]} 56. Ka7 {[%clk 0:00:09.6]} 56... Qb5 {[%clk 0:00:11.3]} 57. Ka8
{[%clk 0:00:10.5]} 57... Kb4 {[%clk 0:00:11.4]} 58. Ka7 {[%clk 0:00:11.4]} 58...
a4 {[%clk 0:00:11.8]} 0-1

[Event "*** SCC Grand Prix: Titled Tuesday Blitz"]
[Site "Chess.com"]
[Date "2020.07.21"]
[Round "5"]
[White "northridgehawk"]
[Black "Yoshikrov"]
[Result "1-0"]
[WhiteElo "2335"]
[BlackElo "2121"]
[TimeControl "180+1"]
[EndTime "10:56:20 PDT"]
[Termination "northridgehawk won on time"]

1. d4 {[%clk 0:02:36.1]} 1... Nf6 {[%clk 0:02:59.7]} 2. c4 {[%clk 0:02:18.1]}
2... g6 {[%clk 0:02:59.3]} 3. Nc3 {[%clk 0:02:16.2]} 3... d5 {[%clk 0:02:59.4]}
4. Nf3 {[%clk 0:02:14]} 4... Bg7 {[%clk 0:02:59.3]} 5. e3 {[%clk 0:02:02]} 5...
O-O {[%clk 0:02:58.8]} 6. Qb3 {[%clk 0:01:55.5]} 6... dxc4 {[%clk 0:02:57.3]} 7.
Bxc4 {[%clk 0:01:56.4]} 7... Nc6 {[%clk 0:02:47.3]} 8. Qc2 {[%clk 0:01:51.5]}
8... Na5 {[%clk 0:02:42.1]} 9. Bd3 {[%clk 0:01:50.7]} 9... c5 {[%clk 0:02:40.2]}
10. dxc5 {[%clk 0:01:47.2]} 10... Nc6 {[%clk 0:02:21.6]} 11. a3 {[%clk
0:01:46.2]} 11... a5 {[%clk 0:02:21.4]} 12. O-O {[%clk 0:01:44.7]} 12... Bg4
{[%clk 0:02:20.3]} 13. Be2 {[%clk 0:01:41.8]} 13... Rc8 {[%clk 0:02:16.6]} 14.
Rd1 {[%clk 0:01:41.2]} 14... Qe8 {[%clk 0:02:11.1]} 15. Nb5 {[%clk 0:01:40.7]}
15... Bxf3 {[%clk 0:01:48.9]} 16. Bxf3 {[%clk 0:01:37]} 16... Nb4 {[%clk
0:01:44.9]} 17. Qa4 {[%clk 0:01:31.5]} 17... Nc6 {[%clk 0:01:38.8]} 18. Bd2
{[%clk 0:01:28.9]} 18... Nd7 {[%clk 0:01:33.2]} 19. Bc3 {[%clk 0:01:23]} 19...
Nxc5 {[%clk 0:01:29]} 20. Qc4 {[%clk 0:01:22.3]} 20... Bxc3 {[%clk 0:01:23]} 21.
Qxc3 {[%clk 0:01:21.5]} 21... Ne6 {[%clk 0:01:11.8]} 22. h4 {[%clk 0:01:18]}
22... Ncd4 {[%clk 0:01:07]} 23. exd4 {[%clk 0:01:05.3]} 23... Rxc3 {[%clk
0:01:06.2]} 24. Nxc3 {[%clk 0:01:06.2]} 24... b5 {[%clk 0:00:56.1]} 25. b4
{[%clk 0:01:04]} 25... axb4 {[%clk 0:00:42]} 26. axb4 {[%clk 0:01:04.9]} 26...
Qd7 {[%clk 0:00:39.4]} 27. d5 {[%clk 0:01:03.3]} 27... Ng7 {[%clk 0:00:34.3]}
28. Ra5 {[%clk 0:01:00.8]} 28... Rb8 {[%clk 0:00:24.9]} 29. g3 {[%clk
0:00:58.5]} 29... Nf5 {[%clk 0:00:24.8]} 30. Kg2 {[%clk 0:00:57.3]} 30... Nd6
{[%clk 0:00:24.8]} 31. Ne4 {[%clk 0:00:55.9]} 31... Nxe4 {[%clk 0:00:20.2]} 32.
Bxe4 {[%clk 0:00:56.8]} 32... Qd6 {[%clk 0:00:20.7]} 33. Rb1 {[%clk 0:00:52.7]}
33... Qe5 {[%clk 0:00:20.9]} 34. Bf3 {[%clk 0:00:52.4]} 34... h5 {[%clk
0:00:19.2]} 35. Ra2 {[%clk 0:00:52]} 35... Qd4 {[%clk 0:00:18.7]} 36. Re2 {[%clk
0:00:52.9]} 36... Kf8 {[%clk 0:00:18.2]} 37. Re4 {[%clk 0:00:52.3]} 37... Qd3
{[%clk 0:00:17.8]} 38. Rbe1 {[%clk 0:00:50.4]} 38... Re8 {[%clk 0:00:16.5]} 39.
Re5 {[%clk 0:00:47.3]} 39... Qd2 {[%clk 0:00:14.8]} 40. R1e4 {[%clk 0:00:46.8]}
40... f6 {[%clk 0:00:13]} 41. Rf4 {[%clk 0:00:43]} 41... Kf7 {[%clk 0:00:11.5]}
42. Ree4 {[%clk 0:00:40.9]} 42... Rd8 {[%clk 0:00:10.8]} 43. Rd4 {[%clk
0:00:37.5]} 43... Qc1 {[%clk 0:00:10.7]} 44. Rfe4 {[%clk 0:00:36.8]} 44... Rd6
{[%clk 0:00:10.2]} 45. Re3 {[%clk 0:00:36]} 45... Qc7 {[%clk 0:00:08.7]} 46.
Rde4 {[%clk 0:00:35.7]} 46... Rd7 {[%clk 0:00:08.6]} 47. Re6 {[%clk 0:00:34.3]}
47... Qc4 {[%clk 0:00:07.9]} 48. d6 {[%clk 0:00:33.3]} 48... Qxe6 {[%clk
0:00:07]} 49. Rxe6 {[%clk 0:00:30.4]} 49... Kxe6 {[%clk 0:00:07.9]} 50. dxe7
{[%clk 0:00:30.6]} 50... Rxe7 {[%clk 0:00:07.4]} 51. Bc6 {[%clk 0:00:30.9]}
51... Kd6 {[%clk 0:00:06.2]} 52. Bxb5 {[%clk 0:00:30.5]} 52... Rb7 {[%clk
0:00:06.7]} 53. Bd3 {[%clk 0:00:30.4]} 53... f5 {[%clk 0:00:06.3]} 54. b5 {[%clk
0:00:30]} 54... Ke5 {[%clk 0:00:05.5]} 55. Kf3 {[%clk 0:00:30]} 55... Rd7 {[%clk
0:00:04.5]} 56. Ke3 {[%clk 0:00:29.3]} 56... Rd8 {[%clk 0:00:02.9]} 57. Be2
{[%clk 0:00:28.8]} 57... Rd6 {[%clk 0:00:02.3]} 58. Bc4 {[%clk 0:00:27.2]} 58...
Rb6 {[%clk 0:00:01.9]} 59. Be2 {[%clk 0:00:28.1]} 1-0